[Event "Early Titled Tuesday Blitz | February 8 2022"]
[White "Dronavalli, Harika"]
[Black "Niyazgulova, Marina"]
[WhiteFideId "5015197"]
[BlackFideId "24142573"]
[WhiteElo "2382"]
[BlackElo "2075"]
[Result "1-0"]
[Round "01"]
[TimeControl "180+1"]
[Date "2022.02.08"]
[WhiteClock "0:01:17"]
[BlackClock "0:00:14"]

1. d4 {[%clk 0:02:59]}  d5 {[%clk 0:02:56]} 2. c4 {[%clk 0:02:59]}  c6 {[%clk 0:02:55]} 3. Nc3 {[%clk 0:02:56]}  Nf6 {[%clk 0:02:55]} 4. e3 {[%clk 0:02:47]}  a6 {[%clk 0:02:52]} 5. Nf3 {[%clk 0:02:45]}  b5 {[%clk 0:02:46]} 6. b3 {[%clk 0:02:43]}  Bg4 {[%clk 0:02:42]} 7. Be2 {[%clk 0:02:40]}  e6 {[%clk 0:02:40]} 8. h3 {[%clk 0:02:39]}  Bxf3 {[%clk 0:02:39]} 9. Bxf3 {[%clk 0:02:38]}  Bd6 {[%clk 0:02:32]} 10. O-O {[%clk 0:02:36]}  O-O {[%clk 0:02:28]} 11. e4 {[%clk 0:02:37]}  dxe4 {[%clk 0:02:20]} 12. Nxe4 {[%clk 0:02:37]}  Nxe4 {[%clk 0:02:20]} 13. Bxe4 {[%clk 0:02:37]}  h6 {[%clk 0:02:16]} 14. Be3 {[%clk 0:02:32]}  Qc7 {[%clk 0:02:09]} 15. Qf3 {[%clk 0:02:21]}  bxc4 {[%clk 0:02:00]} 16. bxc4 {[%clk 0:02:21]}  a5 {[%clk 0:01:59]} 17. Rab1 {[%clk 0:02:14]}  Rc8 {[%clk 0:01:50]} 18. c5 {[%clk 0:02:12]}  Be7 {[%clk 0:01:42]} 19. Bf4 {[%clk 0:02:12]}  Qd7 {[%clk 0:01:39]} 20. Rb6 {[%clk 0:01:47]}  Qxd4 {[%clk 0:01:32]} 21. Be3 {[%clk 0:01:44]}  Qa4 {[%clk 0:01:22]} 22. Rb7 {[%clk 0:01:36]}  Re8 {[%clk 0:01:16]} 23. Rfb1 {[%clk 0:01:21]}  Qxa2 {[%clk 0:01:08]} 24. Bf4 {[%clk 0:01:20]}  Bf6 {[%clk 0:01:01]} 25. Bxb8 {[%clk 0:01:19]}  Rc8 {[%clk 0:00:19]} 26. Be5 {[%clk 0:01:17]}  Bxe5 {[%clk 0:00:14]} 27. Qxf7+ {[%clk 0:01:16]}  Kh8 {[%clk 0:00:15]} 28. Qg6 {[%clk 0:01:17]}  Kg8 {[%clk 0:00:14]} 29. Qh7+ {[%clk 0:01:17]}  Kf8 {[%clk 0:00:14]} 30. Qh8# {[%clk 0:01:17]} 1-0


[Site "https://www.chess.com"]

[Event "Early Titled Tuesday Blitz | February 8 2022"]
[White "Hasangatin, Ramil"]
[Black "Jakubowska, Anna"]
[WhiteFideId "4122160"]
[BlackFideId "1121952"]
[WhiteElo "2375"]
[BlackElo "1924"]
[Result "0-1"]
[Round "01"]
[TimeControl "180+1"]
[Date "2022.02.08"]
[WhiteClock "0:00:44"]
[BlackClock "0:00:33"]

1. e4 {[%clk 0:02:59]}  c6 {[%clk 0:02:58]} 2. Nf3 {[%clk 0:02:58]}  d5 {[%clk 0:02:58]} 3. d3 {[%clk 0:02:58]}  dxe4 {[%clk 0:02:57]} 4. dxe4 {[%clk 0:02:59]}  Qxd1+ {[%clk 0:02:57]} 5. Kxd1 {[%clk 0:03:00]}  Bg4 {[%clk 0:02:54]} 6. Be2 {[%clk 0:02:59]}  Nd7 {[%clk 0:02:54]} 7. Nfd2 {[%clk 0:02:58]}  Bxe2+ {[%clk 0:02:53]} 8. Kxe2 {[%clk 0:02:59]}  O-O-O {[%clk 0:02:53]} 9. Nb3 {[%clk 0:02:56]}  e5 {[%clk 0:02:52]} 10. Be3 {[%clk 0:02:55]}  Ngf6 {[%clk 0:02:51]} 11. f3 {[%clk 0:02:55]}  Bb4 {[%clk 0:02:42]} 12. c3 {[%clk 0:02:54]}  Bd6 {[%clk 0:02:41]} 13. N1d2 {[%clk 0:02:53]}  Bc7 {[%clk 0:02:40]} 14. a4 {[%clk 0:02:52]}  a5 {[%clk 0:02:37]} 15. Nc4 {[%clk 0:02:52]}  b6 {[%clk 0:02:36]} 16. Rhd1 {[%clk 0:02:52]}  c5 {[%clk 0:02:33]} 17. Bg5 {[%clk 0:02:37]}  h6 {[%clk 0:02:30]} 18. Bh4 {[%clk 0:02:37]}  g5 {[%clk 0:02:27]} 19. Bf2 {[%clk 0:02:37]}  Nf8 {[%clk 0:02:19]} 20. Nbd2 {[%clk 0:02:31]}  Ne6 {[%clk 0:02:18]} 21. g3 {[%clk 0:02:31]}  g4 {[%clk 0:02:13]} 22. Ne3 {[%clk 0:02:28]}  gxf3+ {[%clk 0:02:11]} 23. Kxf3 {[%clk 0:02:29]}  Ng5+ {[%clk 0:02:10]} 24. Ke2 {[%clk 0:02:30]}  Nfxe4 {[%clk 0:02:09]} 25. h4 {[%clk 0:02:18]}  Nxd2 {[%clk 0:01:54]} 26. hxg5 {[%clk 0:02:15]}  Ne4 {[%clk 0:01:53]} 27. Rxd8+ {[%clk 0:02:13]}  Bxd8 {[%clk 0:01:52]} 28. gxh6 {[%clk 0:02:12]}  Rxh6 {[%clk 0:01:53]} 29. Ng4 {[%clk 0:02:11]}  Rg6 {[%clk 0:01:41]} 30. Nxe5 {[%clk 0:01:50]}  Re6 {[%clk 0:01:41]} 31. Nc4 {[%clk 0:01:43]}  Nxg3+ {[%clk 0:01:33]} 32. Kd3 {[%clk 0:01:41]}  Ne4 {[%clk 0:01:29]} 33. Be3 {[%clk 0:01:30]}  Nd6 {[%clk 0:01:29]} 34. Nxd6+ {[%clk 0:01:30]}  Rxd6+ {[%clk 0:01:29]} 35. Kc4 {[%clk 0:01:31]}  Re6 {[%clk 0:01:27]} 36. Bd2 {[%clk 0:01:25]}  Re2 {[%clk 0:01:27]} 37. Rd1 {[%clk 0:01:23]}  f5 {[%clk 0:01:24]} 38. Bc1 {[%clk 0:01:16]}  Bc7 {[%clk 0:01:17]} 39. Rh1 {[%clk 0:01:15]}  f4 {[%clk 0:01:14]} 40. Kd5 {[%clk 0:01:09]}  f3 {[%clk 0:01:10]} 41. Rh8+ {[%clk 0:00:49]}  Kd7 {[%clk 0:01:09]} 42. Bg5 {[%clk 0:00:47]}  Re5+ {[%clk 0:01:09]} 43. Kc4 {[%clk 0:00:46]}  Rxg5 {[%clk 0:01:09]} 44. Rf8 {[%clk 0:00:46]}  Rg2 {[%clk 0:01:03]} 45. Rxf3 {[%clk 0:00:41]}  Rxb2 {[%clk 0:01:02]} 46. Rf7+ {[%clk 0:00:42]}  Kc6 {[%clk 0:01:01]} 47. Rf6+ {[%clk 0:00:42]}  Bd6 {[%clk 0:01:01]} 48. Rg6 {[%clk 0:00:43]}  Rf2 {[%clk 0:00:57]} 49. Rh6 {[%clk 0:00:41]}  Rf4+ {[%clk 0:00:57]} 50. Kb3 {[%clk 0:00:42]}  c4+ {[%clk 0:00:57]} 51. Kc2 {[%clk 0:00:42]}  Rf2+ {[%clk 0:00:57]} 52. Kb1 {[%clk 0:00:42]}  Kd5 {[%clk 0:00:55]} 53. Rg6 {[%clk 0:00:41]}  Be5 {[%clk 0:00:51]} 54. Rxb6 {[%clk 0:00:41]}  Bxc3 {[%clk 0:00:51]} 55. Rb8 {[%clk 0:00:40]}  Bb4 {[%clk 0:00:50]} 56. Rd8+ {[%clk 0:00:40]}  Ke4 {[%clk 0:00:50]} 57. Kc1 {[%clk 0:00:40]}  Ra2 {[%clk 0:00:48]} 58. Kb1 {[%clk 0:00:37]}  Rxa4 {[%clk 0:00:48]} 59. Kb2 {[%clk 0:00:37]}  Ra3 {[%clk 0:00:47]} 60. Re8+ {[%clk 0:00:36]}  Kd5 {[%clk 0:00:41]} 61. Rd8+ {[%clk 0:00:36]}  Bd6 {[%clk 0:00:37]} 62. Rxd6+ {[%clk 0:00:35]}  Kxd6 {[%clk 0:00:37]} 63. Kxa3 {[%clk 0:00:36]}  Kc5 {[%clk 0:00:37]} 64. Kb2 {[%clk 0:00:37]}  Kb4 {[%clk 0:00:36]} 65. Kc2 {[%clk 0:00:38]}  Ka3 {[%clk 0:00:36]} 66. Kc1 {[%clk 0:00:38]}  Ka2 {[%clk 0:00:35]} 67. Kc2 {[%clk 0:00:39]}  a4 {[%clk 0:00:36]} 68. Kc3 {[%clk 0:00:35]}  Kb1 {[%clk 0:00:32]} 69. Kb4 {[%clk 0:00:35]}  Kb2 {[%clk 0:00:32]} 70. Kxa4 {[%clk 0:00:35]}  c3 {[%clk 0:00:32]} 71. Kb4 {[%clk 0:00:36]}  c2 {[%clk 0:00:33]} 72. Kc4 {[%clk 0:00:37]}  c1=Q+ {[%clk 0:00:34]} 73. Kd4 {[%clk 0:00:38]}  Qc3+ {[%clk 0:00:34]} 74. Kd5 {[%clk 0:00:39]}  Qb4 {[%clk 0:00:34]} 75. Ke5 {[%clk 0:00:39]}  Kc3 {[%clk 0:00:34]} 76. Kd5 {[%clk 0:00:39]}  Qc4+ {[%clk 0:00:33]} 77. Ke5 {[%clk 0:00:40]}  Qd4+ {[%clk 0:00:34]} 78. Kf5 {[%clk 0:00:41]}  Kc4 {[%clk 0:00:32]} 79. Ke6 {[%clk 0:00:42]}  Qc5 {[%clk 0:00:32]} 80. Kf6 {[%clk 0:00:42]}  Qd5 {[%clk 0:00:32]} 81. Kg6 {[%clk 0:00:42]}  Qe5 {[%clk 0:00:32]} 82. Kf7 {[%clk 0:00:43]}  Qd6 {[%clk 0:00:32]} 83. Kg7 {[%clk 0:00:43]}  Qe6 {[%clk 0:00:32]} 84. Kf8 {[%clk 0:00:43]}  Qd7 {[%clk 0:00:32]} 85. Kg8 {[%clk 0:00:42]}  Kd5 {[%clk 0:00:33]} 86. Kh8 {[%clk 0:00:43]}  Ke6 {[%clk 0:00:33]} 87. Kg8 {[%clk 0:00:44]}  Kf6 {[%clk 0:00:33]} 88. Kh8 {[%clk 0:00:44]}  Qg7# {[%clk 0:00:33]} 0-1


[Site "https://www.chess.com"]

[Event "Early Titled Tuesday Blitz | February 8 2022"]
[White "Heinemann, Josefine"]
[Black "Rakhmanov, Aleksandr"]
[WhiteFideId "12900460"]
[BlackFideId "4173708"]
[WhiteElo "2300"]
[BlackElo "2500"]
[Result "0-1"]
[Round "01"]
[TimeControl "180+1"]
[Date "2022.02.08"]
[WhiteClock "0:00:06"]
[BlackClock "0:00:17"]

1. d4 {[%clk 0:02:57]}  Nf6 {[%clk 0:02:59]} 2. c4 {[%clk 0:02:56]}  d6 {[%clk 0:02:54]} 3. Nf3 {[%clk 0:02:54]}  g6 {[%clk 0:02:51]} 4. Nc3 {[%clk 0:02:53]}  Bf5 {[%clk 0:02:48]} 5. g3 {[%clk 0:02:48]}  Bg7 {[%clk 0:02:46]} 6. Bg2 {[%clk 0:02:48]}  c6 {[%clk 0:02:44]} 7. O-O {[%clk 0:02:47]}  Ne4 {[%clk 0:02:42]} 8. Nxe4 {[%clk 0:02:38]}  Bxe4 {[%clk 0:02:41]} 9. b3 {[%clk 0:02:24]}  O-O {[%clk 0:02:39]} 10. Bb2 {[%clk 0:02:22]}  Nd7 {[%clk 0:02:34]} 11. Qd2 {[%clk 0:02:19]}  d5 {[%clk 0:02:33]} 12. Rac1 {[%clk 0:02:09]}  e6 {[%clk 0:02:31]} 13. Ba3 {[%clk 0:02:05]}  Re8 {[%clk 0:02:31]} 14. Bd6 {[%clk 0:02:03]}  a5 {[%clk 0:02:12]} 15. Bf4 {[%clk 0:01:57]}  Qe7 {[%clk 0:02:08]} 16. h4 {[%clk 0:01:56]}  h5 {[%clk 0:01:57]} 17. Bg5 {[%clk 0:01:47]}  Qb4 {[%clk 0:01:52]} 18. Qf4 {[%clk 0:01:20]}  a4 {[%clk 0:01:32]} 19. Ne5 {[%clk 0:01:01]}  Nxe5 {[%clk 0:01:19]} 20. dxe5 {[%clk 0:01:01]}  Bxg2 {[%clk 0:01:18]} 21. Kxg2 {[%clk 0:01:01]}  axb3 {[%clk 0:01:17]} 22. axb3 {[%clk 0:01:02]}  Qxb3 {[%clk 0:01:09]} 23. Bf6 {[%clk 0:00:37]}  Ra4 {[%clk 0:00:52]} 24. Bxg7 {[%clk 0:00:27]}  Kxg7 {[%clk 0:00:52]} 25. Rb1 {[%clk 0:00:26]}  Qxc4 {[%clk 0:00:47]} 26. Qf6+ {[%clk 0:00:25]}  Kg8 {[%clk 0:00:45]} 27. Rxb7 {[%clk 0:00:25]}  Rf8 {[%clk 0:00:29]} 28. Rfb1 {[%clk 0:00:12]}  Qe4+ {[%clk 0:00:21]} 29. Kh2 {[%clk 0:00:11]}  Qf5 {[%clk 0:00:21]} 30. Qe7 {[%clk 0:00:06]}  Qxf2+ {[%clk 0:00:17]} 0-1


[Site "https://www.chess.com"]

[Event "Early Titled Tuesday Blitz | February 8 2022"]
[White "Hess, Robert"]
[Black "Navalgund, Niranjan"]
[WhiteFideId "2022036"]
[BlackFideId "5030854"]
[WhiteElo "2557"]
[BlackElo "2290"]
[Result "1-0"]
[Round "01"]
[TimeControl "180+1"]
[Date "2022.02.08"]
[WhiteClock "0:00:02"]
[BlackClock "0:00:01"]

1. b3 {[%clk 0:03:00]}  e5 {[%clk 0:02:57]} 2. Bb2 {[%clk 0:03:01]}  Nc6 {[%clk 0:02:58]} 3. h3 {[%clk 0:03:00]}  h5 {[%clk 0:02:50]} 4. e3 {[%clk 0:02:59]}  a6 {[%clk 0:02:47]} 5. d3 {[%clk 0:02:58]}  d5 {[%clk 0:02:46]} 6. Nd2 {[%clk 0:02:59]}  Nf6 {[%clk 0:02:46]} 7. g3 {[%clk 0:02:58]}  Bb4 {[%clk 0:02:44]} 8. a3 {[%clk 0:02:57]}  Bc5 {[%clk 0:02:43]} 9. Bg2 {[%clk 0:02:57]}  Qe7 {[%clk 0:02:42]} 10. Ne2 {[%clk 0:02:57]}  Ba7 {[%clk 0:02:40]} 11. b4 {[%clk 0:02:57]}  Bd7 {[%clk 0:02:38]} 12. c4 {[%clk 0:02:57]}  dxc4 {[%clk 0:02:33]} 13. Nxc4 {[%clk 0:02:58]}  e4 {[%clk 0:02:33]} 14. Bxf6 {[%clk 0:02:43]}  Qxf6 {[%clk 0:02:27]} 15. Bxe4 {[%clk 0:02:43]}  h4 {[%clk 0:02:20]} 16. g4 {[%clk 0:02:42]}  O-O-O {[%clk 0:02:19]} 17. Rc1 {[%clk 0:02:38]}  Kb8 {[%clk 0:02:19]} 18. Nf4 {[%clk 0:02:37]}  Ne7 {[%clk 0:02:13]} 19. Qf3 {[%clk 0:02:16]}  Bc6 {[%clk 0:02:08]} 20. Na5 {[%clk 0:02:04]}  Bxe4 {[%clk 0:01:58]} 21. Qxe4 {[%clk 0:02:05]}  c6 {[%clk 0:01:58]} 22. O-O {[%clk 0:01:53]}  Nd5 {[%clk 0:01:58]} 23. Nxd5 {[%clk 0:01:45]}  Rxd5 {[%clk 0:01:59]} 24. d4 {[%clk 0:01:23]}  Rhd8 {[%clk 0:01:52]} 25. Nc4 {[%clk 0:01:08]}  Ka8 {[%clk 0:01:51]} 26. Ne5 {[%clk 0:01:02]}  Qe6 {[%clk 0:01:49]} 27. Qf3 {[%clk 0:00:53]}  f6 {[%clk 0:01:49]} 28. Ng6 {[%clk 0:00:48]}  Bb8 {[%clk 0:01:47]} 29. Rc5 {[%clk 0:00:40]}  Qd6 {[%clk 0:01:46]} 30. Qg2 {[%clk 0:00:36]}  Rg5 {[%clk 0:01:28]} 31. Nxh4 {[%clk 0:00:30]}  Rh8 {[%clk 0:01:28]} 32. Rxg5 {[%clk 0:00:30]}  fxg5 {[%clk 0:01:27]} 33. Nf3 {[%clk 0:00:30]}  Qd5 {[%clk 0:01:23]} 34. Rc1 {[%clk 0:00:18]}  Qb3 {[%clk 0:01:18]} 35. Nxg5 {[%clk 0:00:15]}  Qxa3 {[%clk 0:01:17]} 36. Rb1 {[%clk 0:00:11]}  Qd3 {[%clk 0:01:16]} 37. Rf1 {[%clk 0:00:10]}  Qc4 {[%clk 0:01:14]} 38. Ne4 {[%clk 0:00:09]}  Qxb4 {[%clk 0:01:13]} 39. Qf3 {[%clk 0:00:06]}  Rf8 {[%clk 0:01:10]} 40. Qe2 {[%clk 0:00:05]}  Qe7 {[%clk 0:01:09]} 41. f3 {[%clk 0:00:05]}  Qh4 {[%clk 0:01:08]} 42. Qg2 {[%clk 0:00:04]}  Qe7 {[%clk 0:01:05]} 43. Rb1 {[%clk 0:00:03]}  Qa3 {[%clk 0:01:05]} 44. Qe2 {[%clk 0:00:03]}  a5 {[%clk 0:00:57]} 45. Nc5 {[%clk 0:00:03]}  b5 {[%clk 0:00:53]} 46. Ne4 {[%clk 0:00:02]}  Re8 {[%clk 0:00:53]} 47. Kg2 {[%clk 0:00:02]}  a4 {[%clk 0:00:43]} 48. Qc2 {[%clk 0:00:02]}  Re6 {[%clk 0:00:31]} 49. Ng5 {[%clk 0:00:02]}  Rd6 {[%clk 0:00:28]} 50. Nf7 {[%clk 0:00:01]}  Rf6 {[%clk 0:00:27]} 51. g5 {[%clk 0:00:01]}  Rxf7 {[%clk 0:00:21]} 52. Qxc6+ {[%clk 0:00:01]}  Ka7 {[%clk 0:00:16]} 53. Qxb5 {[%clk 0:00:01]}  Qd6 {[%clk 0:00:10]} 54. Qa5+ {[%clk 0:00:01]}  Qa6 {[%clk 0:00:10]} 55. Qb5 {[%clk 0:00:02]}  Qxb5 {[%clk 0:00:10]} 56. Rxb5 {[%clk 0:00:02]}  Bc7 {[%clk 0:00:09]} 57. Rb4 {[%clk 0:00:03]}  Bb6 {[%clk 0:00:08]} 58. Rxa4+ {[%clk 0:00:04]}  Kb7 {[%clk 0:00:07]} 59. f4 {[%clk 0:00:04]}  Rc7 {[%clk 0:00:08]} 60. Kf3 {[%clk 0:00:05]}  Rc1 {[%clk 0:00:08]} 61. Kg4 {[%clk 0:00:04]}  Kc6 {[%clk 0:00:08]} 62. Ra8 {[%clk 0:00:03]}  Re1 {[%clk 0:00:07]} 63. Re8 {[%clk 0:00:02]}  Kd7 {[%clk 0:00:08]} 64. Re5 {[%clk 0:00:02]}  Bc7 {[%clk 0:00:08]} 65. Re4 {[%clk 0:00:02]}  Bd6 {[%clk 0:00:08]} 66. Kf5 {[%clk 0:00:02]}  Rh1 {[%clk 0:00:08]} 67. Kg6 {[%clk 0:00:03]}  Rxh3 {[%clk 0:00:08]} 68. Kxg7 {[%clk 0:00:03]}  Rg3 {[%clk 0:00:09]} 69. g6 {[%clk 0:00:03]}  Rg1 {[%clk 0:00:04]} 70. Kf7 {[%clk 0:00:03]}  Ra1 {[%clk 0:00:04]} 71. g7 {[%clk 0:00:03]}  Ra7 {[%clk 0:00:04]} 72. g8=Q {[%clk 0:00:03]}  Kc6+ {[%clk 0:00:05]} 73. Kg6 {[%clk 0:00:03]}  Ra5 {[%clk 0:00:05]} 74. Qc4+ {[%clk 0:00:03]}  Kd7 {[%clk 0:00:05]} 75. Qf7+ {[%clk 0:00:03]}  Kc6 {[%clk 0:00:06]} 76. Qe8+ {[%clk 0:00:03]}  Kb6 {[%clk 0:00:05]} 77. Re6 {[%clk 0:00:04]}  Ka7 {[%clk 0:00:03]} 78. Qd7+ {[%clk 0:00:03]}  Ka8 {[%clk 0:00:02]} 79. Rxd6 {[%clk 0:00:02]}  Rg5+ {[%clk 0:00:01]} 80. fxg5 {[%clk 0:00:02]} 1-0


[Site "https://www.chess.com"]

[Event "Early Titled Tuesday Blitz | February 8 2022"]
[White "Iljushina, Olga"]
[Black "Alinasab, Mobina"]
[WhiteFideId "4152280"]
[BlackFideId "12528897"]
[WhiteElo "1937"]
[BlackElo "2061"]
[Result "0-1"]
[Round "01"]
[TimeControl "180+1"]
[Date "2022.02.08"]
[WhiteClock "0:00:02"]
[BlackClock "0:00:07"]

1. d4 {[%clk 0:02:58]}  Nf6 {[%clk 0:02:56]} 2. c4 {[%clk 0:02:57]}  b6 {[%clk 0:02:54]} 3. Nc3 {[%clk 0:02:54]}  Bb7 {[%clk 0:02:54]} 4. Bf4 {[%clk 0:02:54]}  g6 {[%clk 0:02:53]} 5. e3 {[%clk 0:02:53]}  Bg7 {[%clk 0:02:53]} 6. Nf3 {[%clk 0:02:53]}  O-O {[%clk 0:02:52]} 7. Be2 {[%clk 0:02:53]}  d6 {[%clk 0:02:48]} 8. O-O {[%clk 0:02:52]}  Nh5 {[%clk 0:02:48]} 9. Bg3 {[%clk 0:02:44]}  Nxg3 {[%clk 0:02:45]} 10. hxg3 {[%clk 0:02:44]}  Nd7 {[%clk 0:02:46]} 11. e4 {[%clk 0:02:37]}  e5 {[%clk 0:02:42]} 12. d5 {[%clk 0:02:36]}  a5 {[%clk 0:02:42]} 13. a3 {[%clk 0:02:34]}  f5 {[%clk 0:02:08]} 14. exf5 {[%clk 0:02:25]}  Rxf5 {[%clk 0:01:56]} 15. Bd3 {[%clk 0:02:22]}  Rf8 {[%clk 0:01:51]} 16. Qd2 {[%clk 0:02:22]}  Nc5 {[%clk 0:01:44]} 17. Bc2 {[%clk 0:02:22]}  a4 {[%clk 0:01:38]} 18. Ne4 {[%clk 0:02:09]}  Ba6 {[%clk 0:01:27]} 19. Nxc5 {[%clk 0:02:00]}  bxc5 {[%clk 0:01:28]} 20. Bxa4 {[%clk 0:01:54]}  Bxc4 {[%clk 0:01:26]} 21. Bc6 {[%clk 0:01:47]}  Bxf1 {[%clk 0:01:26]} 22. Rxf1 {[%clk 0:01:36]}  Rb8 {[%clk 0:01:17]} 23. b4 {[%clk 0:01:28]}  cxb4 {[%clk 0:01:16]} 24. axb4 {[%clk 0:01:28]}  Qf6 {[%clk 0:01:15]} 25. b5 {[%clk 0:01:24]}  e4 {[%clk 0:01:12]} 26. Nh2 {[%clk 0:01:04]}  Qd4 {[%clk 0:01:10]} 27. Rd1 {[%clk 0:01:02]}  Qxd2 {[%clk 0:00:55]} 28. Rxd2 {[%clk 0:01:02]}  Rf7 {[%clk 0:00:51]} 29. Ng4 {[%clk 0:00:56]}  h5 {[%clk 0:00:50]} 30. Ne3 {[%clk 0:00:51]}  Bh6 {[%clk 0:00:50]} 31. Re2 {[%clk 0:00:49]}  Bxe3 {[%clk 0:00:49]} 32. Rxe3 {[%clk 0:00:49]}  Rbf8 {[%clk 0:00:50]} 33. Re2 {[%clk 0:00:42]}  Kg7 {[%clk 0:00:47]} 34. g4 {[%clk 0:00:27]}  hxg4 {[%clk 0:00:21]} 35. Rxe4 {[%clk 0:00:26]}  Rf4 {[%clk 0:00:21]} 36. Re7+ {[%clk 0:00:25]}  R8f7 {[%clk 0:00:21]} 37. Re2 {[%clk 0:00:22]}  Rb4 {[%clk 0:00:20]} 38. Kh2 {[%clk 0:00:20]}  Kh6 {[%clk 0:00:19]} 39. Kg3 {[%clk 0:00:20]}  Kg5 {[%clk 0:00:19]} 40. f4+ {[%clk 0:00:18]}  gxf3 {[%clk 0:00:18]} 41. gxf3 {[%clk 0:00:17]}  Rb3 {[%clk 0:00:18]} 42. Rf2 {[%clk 0:00:16]}  Rf4 {[%clk 0:00:19]} 43. Kg2 {[%clk 0:00:15]}  Kf5 {[%clk 0:00:17]} 44. Bd7+ {[%clk 0:00:15]}  Kf6 {[%clk 0:00:18]} 45. Bc6 {[%clk 0:00:14]}  g5 {[%clk 0:00:18]} 46. Kg3 {[%clk 0:00:14]}  Re3 {[%clk 0:00:15]} 47. Bd7 {[%clk 0:00:13]}  Ke5 {[%clk 0:00:15]} 48. Bc6 {[%clk 0:00:13]}  g4 {[%clk 0:00:15]} 49. Rc2 {[%clk 0:00:06]}  Rexf3+ {[%clk 0:00:11]} 50. Kg2 {[%clk 0:00:06]}  Re3 {[%clk 0:00:10]} 51. Bd7 {[%clk 0:00:06]}  Rd4 {[%clk 0:00:09]} 52. Rxc7 {[%clk 0:00:05]}  Rd2+ {[%clk 0:00:08]} 53. Kf1 {[%clk 0:00:04]}  Rf3+ {[%clk 0:00:09]} 54. Kg1 {[%clk 0:00:03]}  Ra3 {[%clk 0:00:07]} 55. Bxg4 {[%clk 0:00:02]}  Ra1+ {[%clk 0:00:07]} 0-1


[Site "https://www.chess.com"]

[Event "Early Titled Tuesday Blitz | February 8 2022"]
[White "Jaferian, Koosha"]
[Black "Sahil, Tickoo"]
[WhiteFideId "12507440"]
[BlackFideId "5019710"]
[WhiteElo "2027"]
[BlackElo "2099"]
[Result "1-0"]
[Round "01"]
[TimeControl "180+1"]
[Date "2022.02.08"]
[WhiteClock "0:00:08"]
[BlackClock "0:00:08"]

1. Nf3 {[%clk 0:02:59]}  d5 {[%clk 0:02:57]} 2. b3 {[%clk 0:02:59]}  Nf6 {[%clk 0:02:55]} 3. Bb2 {[%clk 0:02:59]}  c6 {[%clk 0:02:54]} 4. g3 {[%clk 0:02:59]}  Bf5 {[%clk 0:02:53]} 5. Bg2 {[%clk 0:03:00]}  e6 {[%clk 0:02:53]} 6. O-O {[%clk 0:03:00]}  h6 {[%clk 0:02:51]} 7. d3 {[%clk 0:03:01]}  Be7 {[%clk 0:02:50]} 8. Nbd2 {[%clk 0:03:01]}  O-O {[%clk 0:02:40]} 9. e3 {[%clk 0:02:54]}  a5 {[%clk 0:02:38]} 10. a4 {[%clk 0:02:47]}  Na6 {[%clk 0:02:38]} 11. Qe2 {[%clk 0:02:47]}  Bh7 {[%clk 0:02:35]} 12. Ne1 {[%clk 0:02:46]}  Nb4 {[%clk 0:02:32]} 13. f4 {[%clk 0:02:46]}  Rc8 {[%clk 0:02:19]} 14. h3 {[%clk 0:02:43]}  Re8 {[%clk 0:02:13]} 15. g4 {[%clk 0:02:41]}  Nd7 {[%clk 0:02:10]} 16. e4 {[%clk 0:02:28]}  dxe4 {[%clk 0:02:03]} 17. dxe4 {[%clk 0:02:25]}  Bc5+ {[%clk 0:01:41]} 18. Kh1 {[%clk 0:02:17]}  Nf8 {[%clk 0:01:37]} 19. Rd1 {[%clk 0:02:08]}  Qe7 {[%clk 0:01:26]} 20. Nc4 {[%clk 0:02:02]}  Ra8 {[%clk 0:01:19]} 21. c3 {[%clk 0:01:26]}  Na6 {[%clk 0:01:10]} 22. Nxa5 {[%clk 0:01:27]}  Ba7 {[%clk 0:01:00]} 23. Nc4 {[%clk 0:01:18]}  Nc5 {[%clk 0:00:59]} 24. Ba3 {[%clk 0:01:10]}  Qc7 {[%clk 0:00:52]} 25. Bxc5 {[%clk 0:01:03]}  Bxc5 {[%clk 0:00:51]} 26. Nd3 {[%clk 0:01:04]}  Be7 {[%clk 0:00:45]} 27. Qf3 {[%clk 0:01:02]}  Red8 {[%clk 0:00:44]} 28. Nde5 {[%clk 0:00:55]}  b5 {[%clk 0:00:42]} 29. axb5 {[%clk 0:00:52]}  cxb5 {[%clk 0:00:43]} 30. Nb2 {[%clk 0:00:43]}  Ra2 {[%clk 0:00:40]} 31. Rf2 {[%clk 0:00:32]}  Rxd1+ {[%clk 0:00:33]} 32. Nxd1 {[%clk 0:00:33]}  Ra1 {[%clk 0:00:31]} 33. Kh2 {[%clk 0:00:33]}  Qd6 {[%clk 0:00:29]} 34. Ne3 {[%clk 0:00:28]}  Rb1 {[%clk 0:00:24]} 35. b4 {[%clk 0:00:22]}  Bf6 {[%clk 0:00:20]} 36. Qg3 {[%clk 0:00:18]}  Bxe5 {[%clk 0:00:20]} 37. fxe5 {[%clk 0:00:19]}  Qd3 {[%clk 0:00:20]} 38. Qf3 {[%clk 0:00:18]}  Bg6 {[%clk 0:00:20]} 39. h4 {[%clk 0:00:17]}  Re1 {[%clk 0:00:15]} 40. Nf5 {[%clk 0:00:09]}  Qxf3 {[%clk 0:00:14]} 41. Ne7+ {[%clk 0:00:09]}  Kh7 {[%clk 0:00:14]} 42. Bxf3 {[%clk 0:00:09]}  Re3 {[%clk 0:00:13]} 43. Kg2 {[%clk 0:00:06]}  Bxe4 {[%clk 0:00:12]} 44. Bxe4+ {[%clk 0:00:06]}  Rxe4 {[%clk 0:00:13]} 45. Rxf7 {[%clk 0:00:07]}  Rxg4+ {[%clk 0:00:13]} 46. Kh3 {[%clk 0:00:07]}  Rc4 {[%clk 0:00:11]} 47. Rxf8 {[%clk 0:00:08]}  Rxc3+ {[%clk 0:00:11]} 48. Kg2 {[%clk 0:00:08]}  Rc4 {[%clk 0:00:11]} 49. h5 {[%clk 0:00:07]}  g5 {[%clk 0:00:08]} 50. hxg6+ {[%clk 0:00:06]}  Kg7 {[%clk 0:00:09]} 51. Rf7+ {[%clk 0:00:07]}  Kh8 {[%clk 0:00:08]} 52. Rh7# {[%clk 0:00:08]} 1-0


[Site "https://www.chess.com"]

[Event "Early Titled Tuesday Blitz | February 8 2022"]
[White "Jaracz, Pawel"]
[Black "Carre, Sylvain"]
[WhiteFideId "1102222"]
[BlackFideId "642118"]
[WhiteElo "2429"]
[BlackElo "2105"]
[Result "1-0"]
[Round "01"]
[TimeControl "180+1"]
[Date "2022.02.08"]
[WhiteClock "0:01:38"]
[BlackClock "0:00:02"]

1. d4 {[%clk 0:02:59]}  d5 {[%clk 0:02:58]} 2. c4 {[%clk 0:02:58]}  c6 {[%clk 0:02:58]} 3. e3 {[%clk 0:02:58]}  Nf6 {[%clk 0:02:57]} 4. Nc3 {[%clk 0:02:58]}  e6 {[%clk 0:02:57]} 5. b3 {[%clk 0:02:58]}  Nbd7 {[%clk 0:02:57]} 6. Bd3 {[%clk 0:02:57]}  b6 {[%clk 0:02:56]} 7. Nge2 {[%clk 0:02:57]}  Bb7 {[%clk 0:02:57]} 8. O-O {[%clk 0:02:57]}  Be7 {[%clk 0:02:55]} 9. e4 {[%clk 0:02:57]}  dxe4 {[%clk 0:02:55]} 10. Nxe4 {[%clk 0:02:57]}  Nxe4 {[%clk 0:02:54]} 11. Bxe4 {[%clk 0:02:57]}  Nf6 {[%clk 0:02:54]} 12. Bf3 {[%clk 0:02:56]}  Qc7 {[%clk 0:02:48]} 13. Bf4 {[%clk 0:02:55]}  Bd6 {[%clk 0:02:48]} 14. Bxd6 {[%clk 0:02:52]}  Qxd6 {[%clk 0:02:47]} 15. Qc2 {[%clk 0:02:48]}  O-O-O {[%clk 0:02:43]} 16. c5 {[%clk 0:02:47]}  bxc5 {[%clk 0:02:33]} 17. dxc5 {[%clk 0:02:43]}  Qd3 {[%clk 0:02:33]} 18. Qc1 {[%clk 0:02:41]}  Qd2 {[%clk 0:01:48]} 19. Qc4 {[%clk 0:02:37]}  Qd3 {[%clk 0:01:44]} 20. Qa4 {[%clk 0:02:33]}  Qa6 {[%clk 0:01:39]} 21. Qf4 {[%clk 0:02:25]}  Rd7 {[%clk 0:01:24]} 22. Qg5 {[%clk 0:02:19]}  Rg8 {[%clk 0:01:17]} 23. Rfe1 {[%clk 0:02:19]}  Nd5 {[%clk 0:01:11]} 24. Ng3 {[%clk 0:02:11]}  Qa5 {[%clk 0:01:00]} 25. Ne4 {[%clk 0:02:10]}  Kb8 {[%clk 0:00:54]} 26. a3 {[%clk 0:02:06]}  Qd8 {[%clk 0:00:51]} 27. Qg3+ {[%clk 0:02:03]}  Ka8 {[%clk 0:00:51]} 28. Nd6 {[%clk 0:02:02]}  Ba6 {[%clk 0:00:38]} 29. b4 {[%clk 0:02:00]}  g6 {[%clk 0:00:24]} 30. Rab1 {[%clk 0:01:59]}  h5 {[%clk 0:00:23]} 31. a4 {[%clk 0:01:57]}  Bb7 {[%clk 0:00:03]} 32. b5 {[%clk 0:01:50]}  cxb5 {[%clk 0:00:03]} 33. Nxb7 {[%clk 0:01:44]}  Rxb7 {[%clk 0:00:02]} 34. axb5 {[%clk 0:01:44]}  Qc7 {[%clk 0:00:02]} 35. c6 {[%clk 0:01:38]} 1-0


[Site "https://www.chess.com"]